Cogmind - Beta 13 @@@ ROGUE MODE // 2024.04.09 @ 18:38:18 Player: Allan Result: Self-destructed Performance ------------- Evolutions (1) 500 Regions Visited (2) 400 Robots Destroyed (33) 165 Value Destroyed (645) 645 Prototype IDs (0) 0 Alien Tech Used (0) 0 Bonus (0) 0 TOTAL SCORE: 1710 Bonus ------- None Cogmind --------- Core Integrity 302/400 Matter 270/300 Energy 160/325 System Corruption 0% Temperature Cool (0) Movement Treading (145) Location -9/Materials Parts ------- > --- POWER (2) -------- Improved Ion Engine Light Nuclear Core > --- PROPULSION (2) --- Advanced Treads Advanced Treads > --- UTILITY (3) ------ Medium Storage Unit Sensor Array > --- WEAPON (2) ------- Beam Rifle Grenade Launcher > --- INVENTORY (10) --- Ion Engine Improved Treads Improved Treads Advanced Treads Advanced Treads Shield Generator Light EM Pulse Cannon Light Cannon Mining Claw Peak State ------------ > --- POWER ------------ Improved Ion Engine Light Nuclear Core > --- PROPULSION ------- Advanced Treads Advanced Treads > --- UTILITY ---------- Heat Sink Medium Storage Unit Sensor Array > --- WEAPON ----------- Beam Rifle Light EM Pulse Cannon > --- INVENTORY -------- Ion Engine Improved Ion Engine Improved Treads Improved Treads Improved Treads Improved Treads Shield Generator Light Cannon Grenade Launcher Mining Claw [Rating: 19] Favorites ----------- Power Ion Engine Engine Ion Engine Power Core Light Nuclear Core Propulsion Improved Treads Treads Improved Treads Wheel Compact Wheel Utility Medium Storage Unit Device Sensor Array Storage Medium Storage Unit Weapon EM Pulse Gun Energy Gun EM Pulse Gun Energy Cannon Light EM Pulse Cannon Ballistic Gun Light Assault Rifle Ballistic Cannon Light Cannon Launcher Grenade Launcher Slashing Weapon Mining Claw Build | -11 -10 -9 ------- Run | Yrd Mat Mat Slots Evolved 2 | . . 2 Power 1 | . . 1 Propulsion . | . . . Utility 1 | . . 1 Weapon . | . . . Parts Attached 31 | 6 11 14 Power 4 | 1 . 3 Engine 3 | 1 . 2 Core 1 | . . 1 Reactor . | . . . Propulsion 6 | 2 2 2 Treads 4 | . 2 2 Leg . | . . . Wheel 2 | 2 . . Hover . | . . . Flight . | . . . Utility 4 | 1 2 1 Device 2 | . 1 1 Storage 2 | 1 1 . Processor . | . . . Hackware . | . . . Protection . | . . . Artifact . | . . . Weapon 17 | 2 7 8 Energy Gun 4 | 2 1 1 Energy Cannon 3 | . . 3 Ballistic Gun 1 | . 1 . Ballistic Cannon 5 | . 3 2 Launcher 3 | . 1 2 Special Weapon . | . . . Impact Weapon . | . . . Slashing Weapon 1 | . 1 . Piercing Weapon . | . . . Special Melee Weapon . | . . . Unidentified Prototypes . | . . . Parts Lost 4 | . 1 3 Power 1 | . . 1 Propulsion . | . . . Utility 1 | . . 1 Weapon 2 | . 1 1 Highest Loss Streak 2 | . 1 2 To Critical Strikes . | . . . Average Slot Usage (%) 92 | . 94 90 Engine 13 | . 14 13 Core 2 | . . 5 Treads 20 | . 18 22 Wheel 5 | . 9 . Device 11 | . 9 15 Storage 12 | . 14 11 Energy Gun 12 | . 14 10 Energy Cannon 3 | . . 7 Ballistic Gun 1 | . 2 . Ballistic Cannon 8 | . 10 3 Naked Turns . | . . . Heaviest Build 31 | 13 21 31 Greatest Support 46 | 32 46 46 Greatest Overweight (x) 1 | 1 . . Average Overweight (x) . | . . . Largest Inventory Capacity 10 | 8 10 10 Average Capacity 9 | 6 9 10 Most Carried 10 | 5 10 10 Average Carried 8 | 2 9 8 Final Capacity 10 | 8 10 10 Final Carried 10 | 4 10 9 Class Distribution -------------------- 84% | Mutant 15% | Scavenger-Mutant Dominant Class ---------------- Mutant | -10/Materials Mutant | -9/Materials Resources | -11 -10 -9 ----------- Run | Yrd Mat Mat Matter Collected 602 | 205 222 175 Remotely . | . . . Salvage Created 864 | . 255 609 Parts 77 | . 28 49 Haulers Intercepted 3 | . 2 1 Recyclers Shooed . | . . . Parts Field Recycled . | . . . Retrieved Matter . | . . . Parts Self-Destructed . | . . . Prevented . | . . . Kills | -11 -10 -9 ------- Run | Yrd Mat Mat Combat Hostiles Destroyed 21 | . 5 16 Guns 5 | . 2 3 Cannons 7 | . 1 6 AOE 9 | . 2 7 Classes Destroyed 9 | . 5 4 Worker 2 | . . 2 Tunneler 1 | . . 1 Hauler 3 | . 2 1 Mechanic 1 | . . 1 Operator 1 | . 1 . Watcher 4 | . 2 2 Swarmer 12 | . 3 9 Grunt 4 | . 2 2 Sentry 5 | . . 5 Best Kill Streak 8 | . 3 8 Combat Bots Only 5 | . 3 5 Max Kills in Single Turn 2 | . 2 2 Gunslinging . | . . . Exploded 2 | . 2 2 Melee . | . . . Uniques/NPCs Destroyed . | . . . Combat | -11 -10 -9 -------- Run | Yrd Mat Mat Hostile Shots Fired 91 | . 25 66 Missed 18 | . 5 13 Damage Taken 736 | . 219 517 Core 161 | . 63 98 Absorbed by Shields . | . . . Core Remaining (%) 87 | 100 74 . Volleys Fired 62 | . 28 34 Largest 2 | . 2 2 Hottest 112 | . 80 112 Shots Fired 108 | . 47 61 Gun 56 | . 29 27 Cannon 47 | . 17 30 Launcher 5 | . 1 4 Special . | . . . Kinetic 26 | . 19 7 Thermal 17 | . 10 7 Explosive 5 | . 1 4 Electromagnetic 60 | . 17 43 Robot Hit Streak 13 | . 4 13 Robot Miss Streak 6 | . 5 6 Penetration Max . | . . . Secondary Targets 1 | . 1 . Max Gunslinging Chain 1 | . 1 . Shots Hit Robots 55 | . 23 32 Core Hits 42 | . 14 28 Critical Kills . | . . . Critical Parts Destroyed . | . . . Critical Strikes 2 | . . 2 Burn 2 | . . 2 Melee Attacks 3 | . 3 . Impact . | . . . Slashing 3 | . 3 . Piercing . | . . . Sneak Attacks . | . . . Combat Hostiles . | . . . Follow-up Attacks . | . . . Damage Inflicted 1746 | . 449 1297 Guns 426 | . 209 217 Cannons 468 | . 125 343 Explosions 839 | . 102 737 Melee . | . . . Ramming 13 | . 13 . Kinetic 147 | . 131 16 Thermal 287 | . 104 183 Explosive 705 | . 65 640 Electromagnetic 594 | . 136 458 Impact . | . . . Slashing . | . . . Piercing . | . . . Highest Corruption . | . . . Average Corruption . | . . . Corruption Purged . | . . . Corruption Blocked . | . . . Overload Shots . | . . . Overflow Damage 81 | . . 81 Projectiles 10 | . . 10 Explosions 71 | . . 71 Melee . | . . . Knockbacks 1 | . 1 . Impact . | . . . Kinetic 1 | . 1 . Secondary . | . . . Self-Inflicted Damage . | . . . Shots . | . . . Rammed 2 | . 2 . Targets Rammed 2 | . 2 . Kicked . | . . . Crushed . | . . . Highest Temperature 364 | . 239 364 Average Temperature 152 | . 82 184 Received Heat Transfer 177 | . 93 84 Effects 5 | . . 5 Shutdowns 1 | . . 1 Energy Bleed 2 | . . 2 Interference 2 | . . 2 Siege Activations . | . . . Robots Corrupted . | . . . Combat Hostiles . | . . . Parts Fried 1 | . . 1 Impact Corruptions . | . . . Robots Melted . | . . . Combat Hostiles . | . . . Parts Melted 1 | . . 1 Heat Transferred 670 | . 150 520 Parts Sabotaged . | . . . Parts Stolen . | . . . Parts Stripped . | . . . Power Chain Reactions 2 | . 1 1 Alert | -11 -10 -9 ------- Run | Yrd Mat Mat Peak Influence 387 | . 181 387 Initial 5 | . . 5 Average 63 | . 37 110 Maximum Alert Level 1 | . . 1 Low Security (%) 92 | 100 100 80 Level 1 7 | . . 19 Level 2 . | . . . Level 3 . | . . . Level 4 . | . . . Level 5 . | . . . High Security . | . . . Max Security . | . . . Squads Dispatched 1 | . 1 . Investigation . | . . . Extermination . | . . . Reinforcement 1 | . 1 . Assault . | . . . Garrison . | . . . Intercept . | . . . Searches Triggered . | . . . Construction Impeded . | . . . Haulers Reinforced . | . . . Active Scanning Responses . | . . . Cargo Convoy Interrupts . | . . . Stealth | -11 -10 -9 --------- Run | Yrd Mat Mat Distress Signals 2 | . 2 . Communications Jammed . | . . . Distress Signals . | . . . Times Spotted 32 | . 11 21 Peak Tracking Total 5 | . 3 5 Tactical Retreats 1 | . 1 . Traps | -11 -10 -9 ------- Run | Yrd Mat Mat Traps Triggered . | . . . Indirectly . | . . . Trap Hack Attempts . | . . . Triggered . | . . . Disarmed . | . . . Reprogrammed . | . . . Reused . | . . . Traps Extracted . | . . . Installed . | . . . Triggered . | . . . Machines | -11 -10 -9 ---------- Run | Yrd Mat Mat Machines Disabled 3 | . 1 2 Max in Single Turn 1 | . 1 1 Machines Repaired . | . . . Machines Dismantled . | . . . Machines Sabotaged . | . . . Overloaded Fab Kills . | . . . Hacking | -11 -10 -9 --------- Run | Yrd Mat Mat Machines Accessed 5 | . 3 2 Terminals 4 | . 2 2 Fabricators . | . . . Repair Stations . | . . . Recycling Units 1 | . 1 . Scanalyzers . | . . . Garrison Access . | . . . Total Hacks 10 | . 3 7 Successful 5 | . 3 2 Failed 5 | . . 5 Catastrophic 3 | . . 3 Database Lockouts . | . . . Manual 8 | . 1 7 Terminals 9 | . 2 7 Fabricators . | . . . Repair Stations . | . . . Recycling Units 1 | . 1 . Scanalyzers . | . . . Garrison Access . | . . . Terminal Hacks 4 | . 2 2 Patrol Status 1 | . 1 . Hauler Manifests 1 | . . 1 Registered Components 2 | . 1 1 Fabricator Hacks . | . . . Repair Station Hacks . | . . . Recycling Unit Hacks 1 | . 1 . Report Inventory 1 | . 1 . Scanalyzer . | . . . Garrison Access Hacks . | . . . Unauthorized Hacks . | . . . Terminals . | . . . Fabricators . | . . . Repair Stations . | . . . Recycling Units . | . . . Scanalyzers . | . . . Garrison Access . | . . . Data Cores Recovered 1 | . 1 . Used . | . . . Hacking Detections 4 | . 2 2 Full Trace Events . | . . . Feedback Events . | . . . Feedback Blocked . | . . . Robot Schematics Acquired . | . . . Robots Built . | . . . Authchips . | . . . Time . | . . . Total Robot Build Rating . | . . . Part Schematics Acquired . | . . . Parts Built . | . . . Authchips . | . . . Time . | . . . Total Part Build Rating . | . . . Parts Repaired . | . . . Time . | . . . Parts Recycled . | . . . Recycled Matter . | . . . Retrieved Matter . | . . . Retrieved Components . | . . . Parts Scanalyzed . | . . . Part Schematics Acquired . | . . . Parts Damaged . | . . . Bothacking | -11 -10 -9 ------------ Run | Yrd Mat Mat Used RIF Installer . | . . . Robots Hacked . | . . . Non-combat . | . . . Combat . | . . . Robot Hacks Applied . | . . . Relay Couplers Released . | . . . Fabnet Peak Effective % . | . . . Robots Rewired . | . . . Allies Hacked . | . . . Hacks Repelled . | . . . Allies | -11 -10 -9 -------- Run | Yrd Mat Mat Total Allies . | . . . Largest Group . | . . . Highest-Rated Group . | . . . Highest-Rated Ally . | . . . Total Orders . | . . . Ally Attacks . | . . . Total Damage . | . . . Kills . | . . . Allies Corrupted . | . . . Allies Melted . | . . . Intel | -11 -10 -9 ------- Run | Yrd Mat Mat Robot Analysis Total . | . . . Derelict Logs Recovered . | . . . Drone Launches . | . . . Drone Recoveries . | . . . Exploration | -11 -10 -9 ------------- Run | Yrd Mat Mat Turns Passed 1651 | 65 966 620 Spaces Moved 989 | 51 623 315 Core 14 | 14 . . Treads 678 | . 363 315 Legs . | . . . Wheels 297 | 37 260 . Hover . | . . . Flight . | . . . Fastest Speed 50 | 50 100 145 Average Speed 139 | 97 134 155 Slowest Speed 160 | 100 160 160 Overloaded Moves . | . . . Propulsion Burnouts . | . . . Robots Hopped . | . . . Cave-ins Triggered . | . . . Exploration Rate (%) 34 | 3 74 26 Regions Visited 2 Branch Regions . Pre-discovered Areas . | . . . Known Exits Taken . | . . . Unknown Exits Taken 2 | 1 1 . Scrap Searched . | . . . Spaces Dug 3 | . 3 . Terrain Destroyed 68 | . 15 53 Melee 3 | . 3 . Projectile . | . . . AOE 65 | . 12 53 Terrain Rammed . | . . . Walls Destroyed . | . . . Machines Disabled . | . . . Actions | -11 -10 -9 --------- Run | Yrd Mat Mat Total 1145 | 66 696 383 Wait 5 | . . 5 Move 987 | 50 622 315 Hop . | . . . Pick Up 38 | 10 19 9 Fast Attach . | . . . Attach 12 | 6 2 4 Detach . | . . . Swap 19 | . 9 10 Drop 17 | . 11 6 Fire 62 | . 28 34 Melee 3 | . 3 . Ram . | . . . Kick . | . . . Crush 2 | . 2 . Escape Stasis . | . . . Rewire . | . . . Trap . | . . . Miscellaneous . | . . . Route ------- -11/Scrapyard -10/Materials (discovered 3 exits: *Mat x2 / [*Min]) -9/Materials (discovered 1 exit: [*Min]) History --------- Turn | Location | Event 31 | -11/Scrapyard | Discovered new exit (range 15) 66 | -11/Scrapyard | Entered Materials 316 | -10/Materials | Build established: Mutant 367 | -10/Materials | Discovered new exit (range 7) 815 | -10/Materials | Discovered new exit (range 14) 993 | -10/Materials | Discovered new exit (range 7) 1032 | -10/Materials | Entered another Materials area 1032 | -9/Materials | Evolved 2 slots: Power x1, Utility x1 1530 | -9/Materials | Discovered new exit (range 6) 1652 | -9/Materials | Self-destructed Last Messages --------------- Acquired 2 matter. The unstable cave ceiling collapses. Nuclear Reactor explodes. K-01 Serf destroyed. The unstable cave ceiling collapses. U-05 Engineer lays Concrete. U-05 Engineer builds a Wall. Acquired 4 matter. U-05 Engineer builds a Wall. The unstable cave ceiling collapses. Acquired 34 matter. U-05 Engineer builds a Wall. U-05 Engineer lays Concrete. Imp. Ion Engine destroyed. S-10 Pest destroyed. Destroyed Flight Unit. S-10 Pest destroyed. Heat Sink destroyed. S-10 Pest destroyed. Destroyed Lgt. Ion Engine. Map ----- +----------------------------------------------------+ | ?##### #= ""#???????? #??# | | ?#[[ # T"#???????? #??# | | ?#[[ # ""#???????# #??# | | ?#= ####### # #???????# #### | | ?#== #?????# ##+############# | | ?#!! #?????+ | | ?#!! #?????#!^= = ## ## | | ?##### #??"" #%^ # # # ##### | | ?????# #?""" #* #???? | | ?????# # """ # #???? | | ?????# + # +???? | | ?????# ###### "" #???? | | ?????# #????## ="" # #???? | | ???####+#####??# [%T" [[! ** #???? | | ???# = =#### ="" # = * #???? | | ???# !!!!%[# ="" # % #???? | | ???# !! */%+=**[ = % # # # #???# | | ???# !! =!=## * = ## # + ##### | | ???# % [#? ######## "" # | | ???# """ #? =% ## """ # | | ???# """ !#?? [ "" ## R" # | | ???# """ #??# ""S ## """ ######### | | ???# #??#k "" ## #???????# | | ???##########??#% # #########???????# | | ???????????????#[* #?? #???????????????# | | ???????????????#=%@#????###???????????????# | | ???????????????# = #??????????????????????? | | ???????????????# #??????????????????????? | | ??????????????# ??????????????????????? | | ??????????????# ??????????????????????? | | ??????????????# [%[ ??????????????????????? | | ??????????????# = ??????????????????????? | | ??????????????# #?????????????????????? | | ??????????????### ###????????????????????!? | | ????????????????# ????????????????????????? | | ????????????????w ????????????????????????? | | ????????????????# ????????????????????????? | | ????????????????# ????????????????????????? | | ????????????????? ????????????????????????? | | ????????????????? ????????????????????????? | | ????????????????? ????????????????????????? | | ??????????????????????????????????????????? | | ??????????????????????????????????????????? | | ?????????????????????????????????????????!? | | ??????????????????????????????????????????? | | ??????????????????????????????????????????? | | ??????????????????????????????????????????? | | ??????????????????????????????????????????? | | ??????????????????????????????????????????? | | ??????????????????????????????????????????? | +----------------------------------------------------+ Best States ------------- Heat Dissipation 38 Energy Generation 21 Energy Capacity 415 Matter Stores 300 Matter Capacity 300 Sight Range 16 Robot Scan Range 14 Terrain Scan Density 10 Evasion (%) 40 Recoil Reduction 2 Item Schematics ----------------- None Robot Schematics ------------------ None Fabricated ------------ Nothing Alien Tech Used ----------------- None Achievements -------------- Shopping List Challenges ------------ None Game ------ Seed ThrusterConcussivePlatform Manual? 0 Play Time 00:28:35 Cumulative 5.4 hours Start 2024.04.09 @ 14:19:47 End 2024.04.09 @ 18:38:18 Sessions 3 Manual Loads 0 Difficulty Rogue Special Mode None Game No. 6 Rogue 6 Adventurer 0 Explorer 0 Win Type - Total 0 Types 0/0/0/0/0/0/0/0/0 Lore% 2 Gallery% 6 Achievement% 8 Wizard Run 0 Options --------- Layout 1 ASCII 0 Keyboard 0 Movement Arrows Keybinds 0 Fullscreen 1 Font 16/SmallcapsGlow Map View 55x38 Zoom Use 0% Tactical HUD 0 Map Filters NONE Filters NONE Steam 1 RUN: 72532a72-dc76-4f24-b4d8-bfbf7ecc86b3